[Event "NJSK 2026 Jeugd A"]
[Site "Helmond, Netherlands"]
[Date "2026.04.25"]
[Round "1.5"]
[White "Heus, Daan"]
[Black "Kazarjan, Gachatur"]
[Result "0-1"]
[TimeControl "90min/40moves + 30min + 30sec/move"]
[WhiteTitle "-"]
[BlackTitle "-"]
[WhiteFideId "40103757"]
[BlackFideId "1068750"]
[WhiteElo "2049"]
[BlackElo "2272"]

1. e4 {[%clk 01:30:48]} {[%emt 00:00:11]} c5 {[%clk 01:30:55]} {[%emt
00:00:06]} 2. Nf3 {[%clk 01:30:58]} {[%emt 00:00:19]} d6 {[%clk 01:30:52]}
{[%emt 00:00:36]} 3. Bb5+ {[%clk 01:30:55]} {[%emt 00:00:30]} Nd7 {[%clk
01:31:17]} {[%emt 00:00:05]} 4. d4 {[%clk 01:31:11]} {[%emt 00:00:14]} cxd4
{[%clk 01:31:41]} {[%emt 00:00:05]} 5. Nxd4 {[%clk 01:31:21]} {[%emt 00:00:20]}
Ngf6 {[%clk 01:32:06]} {[%emt 00:00:06]} 6. O-O {[%clk 01:31:42]} {[%emt
00:00:09]} a6 {[%clk 01:32:32]} {[%emt 00:00:04]} 7. Bd3 {[%clk 01:32:05]}
{[%emt 00:00:06]} g6 {[%clk 01:32:52]} {[%emt 00:00:10]} 8. c4 {[%clk
01:31:40]} {[%emt 00:00:56]} Bg7 {[%clk 01:33:17]} {[%emt 00:00:05]} 9. Nc3
{[%clk 01:29:57]} {[%emt 00:02:14]} O-O {[%clk 01:33:15]} {[%emt 00:00:31]} 10.
Be2 {[%clk 01:27:06]} {[%emt 00:03:20]} Nc5 {[%clk 01:24:35]} {[%emt 00:09:10]}
11. f3 {[%clk 01:25:34]} {[%emt 00:02:02]} Ne6 {[%clk 01:19:24]} {[%emt
00:05:41]} 12. Nc2 {[%clk 01:22:34]} {[%emt 00:03:30]} Bd7 {[%clk 01:19:00]}
{[%emt 00:00:54]} 13. Be3 {[%clk 01:14:35]} {[%emt 00:08:29]} Rc8 {[%clk
01:16:59]} {[%emt 00:02:31]} 14. Rc1 {[%clk 01:11:55]} {[%emt 00:03:10]} a5
{[%clk 01:12:43]} {[%emt 00:04:46]} 15. Qd2 {[%clk 01:05:48]} {[%emt 00:06:37]}
Bc6 {[%clk 01:09:19]} {[%emt 00:03:54]} 16. Rfd1 {[%clk 01:00:06]} {[%emt
00:06:12]} Nd7 {[%clk 01:09:14]} {[%emt 00:00:35]} 17. b3 {[%clk 00:55:55]}
{[%emt 00:04:41]} b6 {[%clk 01:05:53]} {[%emt 00:03:51]} 18. Nd5 {[%clk
00:50:55]} {[%emt 00:05:31]} Nec5 {[%clk 01:03:58]} {[%emt 00:02:24]} 19. Nd4
{[%clk 00:50:10]} {[%emt 00:01:16]} Bb7 {[%clk 01:04:20]} {[%emt 00:00:08]} 20.
Bg5 {[%clk 00:40:34]} {[%emt 00:10:05]} f6 {[%clk 01:03:26]} {[%emt 00:01:24]}
21. Bh6 {[%clk 00:38:54]} {[%emt 00:02:10]} Bxh6 {[%clk 00:58:28]} {[%emt
00:05:28]} 22. Qxh6 {[%clk 00:39:17]} Ne5 {[%clk 00:58:38]} {[%emt 00:00:26]}
23. Qh3 {[%clk 00:32:30]} {[%emt 00:07:18]} Nf7 {[%clk 00:58:09]} {[%emt
00:01:00]} 24. Ne6 {[%clk 00:29:50]} {[%emt 00:03:09]} Nxe6 {[%clk 00:56:18]}
{[%emt 00:02:21]} 25. Qxe6 {[%clk 00:30:14]} {[%emt 00:00:07]} Re8 {[%clk
00:52:20]} {[%emt 00:04:28]} 26. c5 {[%clk 00:25:27]} {[%emt 00:05:17]} Bxd5
{[%clk 00:51:57]} {[%emt 00:00:53]} 27. Rxd5 {[%clk 00:23:24]} {[%emt
00:02:32]} Rxc5 {[%clk 00:51:33]} {[%emt 00:00:54]} 28. Bc4 {[%clk 00:17:08]}
{[%emt 00:06:47]} Rf8 {[%clk 00:50:00]} {[%emt 00:02:02]} 29. Rcd1 {[%clk
00:13:12]} {[%emt 00:04:26]} Kg7 {[%clk 00:49:32]} {[%emt 00:00:58]} 30. f4
{[%clk 00:13:23]} {[%emt 00:00:19]} Qc7 {[%clk 00:49:10]} {[%emt 00:00:51]} 31.
h4 {[%clk 00:11:37]} {[%emt 00:02:17]} b5 {[%clk 00:46:49]} {[%emt 00:02:51]}
32. Be2 {[%clk 00:06:46]} {[%emt 00:05:21]} Qa7 {[%clk 00:40:16]} {[%emt
00:07:03]} 33. Kf1 {[%clk 00:04:19]} {[%emt 00:02:57]} Rc2 {[%clk 00:40:20]}
{[%emt 00:00:25]} 34. R5d2 {[%clk 00:03:15]} {[%emt 00:01:35]} Rxd2 {[%clk
00:40:35]} {[%emt 00:00:16]} 35. Rxd2 {[%clk 00:03:43]} {[%emt 00:00:01]} Qe3
{[%clk 00:40:57]} {[%emt 00:00:08]} 36. Rd3 {[%clk 00:03:14]} {[%emt 00:01:00]}
Qc1+ {[%clk 00:40:24]} {[%emt 00:01:02]} 37. Bd1 {[%clk 00:03:07]} {[%emt
00:00:36]} Qxf4+ {[%clk 00:40:49]} {[%emt 00:00:06]} 38. Rf3 {[%clk 00:03:11]}
{[%emt 00:00:26]} Qxh4 {[%clk 00:40:50]} {[%emt 00:00:29]} 39. Qxe7 {[%clk
00:02:50]} {[%emt 00:00:51]} Qh1+ {[%clk 00:41:10]} {[%emt 00:00:10]} 40. Ke2
{[%clk 00:02:57]} {[%emt 00:00:23]} Qxg2+ {[%clk 00:41:32]} {[%emt 00:00:07]}
41. Rf2 {[%clk 00:02:57]} {[%emt 00:00:30]} Qg5 {[%clk 00:41:42]} {[%emt
00:00:20]} 42. b4 {[%clk 00:01:12]} {[%emt 00:02:17]} a4 {[%clk 00:41:28]}
{[%emt 00:00:44]} 43. Qd7 {[%clk 00:00:40]} {[%emt 00:01:01]} Rd8 {[%clk
00:41:37]} {[%emt 00:00:22]} 44. Qe6 {[%clk 00:30:07]} {[%emt 00:01:03]} d5
{[%clk 01:12:01]} {[%emt 00:00:05]} 0-1

[Event "NJSK 2026 Jeugd A"]
[Site "Helmond, Netherlands"]
[Date "2026.04.25"]
[Round "1.6"]
[White "Terlouw, Wouter"]
[Black "Fallaux, Storm"]
[Result "1-0"]
[TimeControl "90min/40moves + 30min + 30sec/move"]
[WhiteTitle "-"]
[BlackTitle "-"]
[WhiteFideId "1087401"]
[BlackFideId "1073095"]
[WhiteElo "2272"]
[BlackElo "2034"]

1. d4 {[%clk 01:30:54]} {[%emt 00:00:05]} d5 {[%clk 01:30:54]} {[%emt
00:00:07]} 2. Nf3 {[%clk 01:30:55]} {[%emt 00:00:28]} Nf6 {[%clk 01:31:17]}
{[%emt 00:00:07]} 3. c4 {[%clk 01:31:21]} {[%emt 00:00:04]} dxc4 {[%clk
01:31:36]} {[%emt 00:00:12]} 4. e3 {[%clk 01:31:45]} {[%emt 00:00:09]} e6
{[%clk 01:31:58]} {[%emt 00:00:06]} 5. Bxc4 {[%clk 01:32:08]} {[%emt 00:00:05]}
c5 {[%clk 01:32:24]} {[%emt 00:00:06]} 6. O-O {[%clk 01:30:54]} {[%emt
00:01:43]} a6 {[%clk 01:32:47]} {[%emt 00:00:08]} 7. a4 {[%clk 01:30:29]}
{[%emt 00:00:54]} Nc6 {[%clk 01:33:06]} {[%emt 00:00:12]} 8. Nc3 {[%clk
01:30:27]} {[%emt 00:00:31]} Be7 {[%clk 01:33:21]} {[%emt 00:00:16]} 9. Ne5
{[%clk 01:22:01]} {[%emt 00:08:55]} cxd4 {[%clk 01:30:04]} {[%emt 00:03:47]} 10.
Nxc6 {[%clk 01:22:21]} {[%emt 00:00:10]} bxc6 {[%clk 01:30:27]} {[%emt
00:00:07]} 11. exd4 {[%clk 01:22:26]} {[%emt 00:00:24]} O-O {[%clk 01:27:15]}
{[%emt 00:03:43]} 12. Be3 {[%clk 01:16:38]} {[%emt 00:06:18]} Qa5 {[%clk
01:18:48]} {[%emt 00:08:57]} 13. Bd3 {[%clk 01:03:19]} {[%emt 00:13:49]} c5
{[%clk 00:44:53]} {[%emt 00:34:26]} 14. dxc5 {[%clk 01:01:14]} {[%emt
00:02:35]} Bxc5 {[%clk 00:45:03]} {[%emt 00:00:19]} 15. Ne4 {[%clk 01:01:29]}
{[%emt 00:00:15]} Be7 {[%clk 00:43:52]} {[%emt 00:01:41]} 16. Bg5 {[%clk
00:42:24]} {[%emt 00:19:35]} Qd8 {[%clk 00:35:09]} {[%emt 00:09:13]} 17. Qf3
{[%clk 00:26:08]} {[%emt 00:16:46]} Nd5 {[%clk 00:19:53]} {[%emt 00:15:46]} 18.
Bd2 {[%clk 00:19:59]} {[%emt 00:06:38]} Bb7 {[%clk 00:16:49]} {[%emt 00:03:37]}
19. Qh5 {[%clk 00:15:14]} {[%emt 00:05:14]} f5 {[%clk 00:11:40]} {[%emt
00:05:38]} 20. Ng5 {[%clk 00:13:37]} {[%emt 00:02:07]} Bxg5 {[%emt 00:00:23]}
21. Bxg5 {[%clk 00:13:45]} {[%emt 00:00:06]} Qd7 {[%clk 00:10:33]} {[%emt
00:01:59]} 22. Rfe1 {[%clk 00:11:14]} {[%emt 00:03:01]} h6 {[%clk 00:10:08]}
{[%emt 00:00:56]} 23. Bd2 {[%clk 00:09:36]} {[%emt 00:02:07]} Nf6 {[%clk
00:10:09]} {[%emt 00:00:29]} 24. Qe2 {[%clk 00:09:42]} {[%emt 00:00:18]} Rfd8
{[%clk 00:09:39]} {[%emt 00:01:07]} 25. Ra3 {[%clk 00:09:20]} {[%emt 00:00:52]}
Ne4 {[%clk 00:08:21]} {[%emt 00:01:48]} 26. Ba5 {[%clk 00:07:39]} {[%emt
00:02:11]} Re8 {[%clk 00:07:48]} {[%emt 00:01:03]} 27. Bxe4 {[%clk 00:05:34]}
{[%emt 00:02:35]} Bxe4 {[%clk 00:08:16]} {[%emt 00:00:02]} 28. Rg3 {[%clk
00:05:10]} {[%emt 00:00:53]} Qxa4 {[%clk 00:07:51]} {[%emt 00:00:56]} 29. Bc3
{[%clk 00:05:31]} {[%emt 00:00:09]} Re7 {[%clk 00:07:52]} {[%emt 00:00:29]} 30.
Qh5 {[%clk 00:05:15]} {[%emt 00:00:46]} f4 {[%clk 00:07:21]} {[%emt 00:01:01]}
31. Rg4 {[%clk 00:02:57]} {[%emt 00:02:48]} Bf5 {[%clk 00:07:07]} {[%emt
00:00:44]} 32. Qh4 {[%clk 00:03:13]} {[%emt 00:00:14]} Qd7 {[%clk 00:04:00]}
{[%emt 00:03:36]} 33. Rxf4 {[%clk 00:03:17]} {[%emt 00:00:27]} Rf7 {[%clk
00:03:07]} {[%emt 00:01:23]} 34. Rf3 {[%clk 00:02:37]} {[%emt 00:01:10]} Rc8
{[%clk 00:02:36]} {[%emt 00:01:02]} 35. Rg3 {[%clk 00:02:07]} {[%emt 00:00:59]}
Kh7 {[%clk 00:02:01]} {[%emt 00:01:05]} 36. h3 {[%clk 00:01:52]} {[%emt
00:00:45]} Rc5 {[%clk 00:01:46]} {[%emt 00:00:45]} 37. Kh2 {[%clk 00:01:33]}
{[%emt 00:00:49]} Rd5 {[%clk 00:01:30]} {[%emt 00:00:47]} 38. Ra1 {[%clk
00:01:23]} {[%emt 00:00:41]} Qa7 {[%clk 00:01:27]} {[%emt 00:00:33]} 39. Ra4
{[%clk 00:01:11]} {[%emt 00:00:41]} Rd3 {[%clk 00:00:52]} {[%emt 00:01:05]} 40.
Rxd3 {[%clk 00:00:45]} {[%emt 00:00:56]} Bxd3 {[%clk 00:01:20]} {[%emt
00:00:02]} 41. Rg4 {[%clk 00:01:03]} {[%emt 00:00:10]} Bf5 {[%clk 00:28:21]}
{[%emt 00:03:30]} 42. Rg3 {[%clk 00:31:18]} {[%emt 00:00:13]} Qc7 {[%clk
00:27:12]} {[%emt 00:01:42]} 43. Qa4 {[%clk 00:29:25]} {[%emt 00:02:22]} Qb6
{[%clk 00:24:23]} {[%emt 00:03:20]} 44. Bd4 {[%clk 00:24:49]} {[%emt 00:05:06]}
Qb5 {[%clk 00:23:53]} {[%emt 00:01:00]} 45. Qa3 {[%clk 00:24:41]} {[%emt
00:00:36]} Qc4 {[%clk 00:18:59]} {[%emt 00:05:26]} 46. Qe3 {[%clk 00:25:01]}
{[%emt 00:00:09]} Qd5 {[%clk 00:18:29]} {[%emt 00:01:00]} 47. Qc3 {[%clk
00:25:21]} {[%emt 00:00:10]} Qb7 {[%clk 00:18:08]} {[%emt 00:00:51]} 48. b4
{[%clk 00:20:21]} {[%emt 00:05:30]} Qc7 {[%clk 00:17:31]} {[%emt 00:01:08]} 49.
Qa1 {[%clk 00:20:20]} {[%emt 00:00:31]} Qb7 {[%clk 00:17:16]} {[%emt 00:00:45]}
50. Bc5 {[%clk 00:18:03]} {[%emt 00:02:47]} Be4 {[%clk 00:13:51]} {[%emt
00:03:54]} 51. Qe5 {[%clk 00:17:45]} {[%emt 00:00:46]} Qd5 {[%clk 00:14:03]}
{[%emt 00:00:20]} 52. Qb2 {[%clk 00:14:01]} {[%emt 00:04:11]} Qb7 {[%clk
00:12:56]} {[%emt 00:01:40]} 53. Qe2 {[%clk 00:14:17]} {[%emt 00:00:13]} Rd7
{[%clk 00:10:08]} {[%emt 00:03:20]} 54. Re3 {[%clk 00:10:28]} {[%emt 00:04:18]}
Bd5 {[%clk 00:08:42]} {[%emt 00:01:56]} 55. Qc2+ {[%clk 00:10:15]} {[%emt
00:00:43]} g6 {[%clk 00:03:25]} {[%emt 00:05:48]} 56. Rg3 {[%clk 00:08:01]}
{[%emt 00:02:44]} Be4 {[%clk 00:03:33]} {[%emt 00:00:21]} 57. Qe2 {[%clk
00:07:31]} {[%emt 00:00:57]} Rf7 {[%clk 00:02:16]} {[%emt 00:01:51]} 58. Bd4
{[%clk 00:07:07]} {[%emt 00:00:53]} Bf5 {[%clk 00:01:52]} {[%emt 00:00:54]} 59.
Qe5 {[%clk 00:07:23]} {[%emt 00:00:14]} Qa8 {[%clk 00:01:15]} {[%emt 00:01:07]}
60. h4 {[%clk 00:06:29]} {[%emt 00:01:23]} Qd8 {[%clk 00:01:13]} {[%emt
00:00:33]} 61. h5 {[%clk 00:05:50]} {[%emt 00:01:08]} Rd7 {[%clk 00:01:15]}
{[%emt 00:00:27]} 62. hxg6+ {[%clk 00:04:10]} {[%emt 00:02:11]} Bxg6 {[%clk
00:01:43]} 63. Bb2 {[%clk 00:02:10]} {[%emt 00:02:27]} Qe8 {[%clk 00:00:59]}
{[%emt 00:01:17]} 64. f4 {[%clk 00:00:55]} {[%emt 00:01:45]} Re7 {[%clk
00:00:43]} {[%emt 00:00:46]} 65. Rxg6 {[%clk 00:00:43]} {[%emt 00:00:42]} Kxg6
{[%clk 00:01:04]} {[%emt 00:00:09]} 66. Qe4+ {[%clk 00:01:10]} {[%emt
00:00:04]} Kh5 {[%clk 00:01:16]} {[%emt 00:00:18]} 67. Kh3 {[%clk 00:01:35]}
{[%emt 00:00:05]} Qg8 {[%clk 00:01:10]} {[%emt 00:00:35]} 68. f5 {[%clk
00:01:28]} {[%emt 00:00:37]} exf5 {[%clk 00:01:12]} {[%emt 00:00:28]} 69. Qh4+
{[%clk 00:01:49]} {[%emt 00:00:09]} Kg6 {[%clk 00:01:34]} {[%emt 00:00:08]} 70.
Qf6+ {[%clk 00:02:16]} {[%emt 00:00:03]} Kh5 {[%clk 00:01:54]} {[%emt
00:00:10]} 71. Qxf5+ {[%clk 00:02:40]} {[%emt 00:00:05]} 1-0

[Event "NJSK 2026 Jeugd A"]
[Site "Helmond, Netherlands"]
[Date "2026.04.25"]
[Round "1.7"]
[White "Ponomarev, Ivan"]
[Black "Madularea, David"]
[Result "0-1"]
[TimeControl "90min/40moves + 30min + 30sec/move"]
[WhiteTitle "-"]
[BlackTitle "-"]
[WhiteFideId "34411003"]
[BlackFideId "1070215"]
[WhiteElo "1983"]
[BlackElo "2261"]

1. c4 {[%clk 01:30:58]} {[%emt 00:00:02]} e6 {[%clk 01:30:53]} {[%emt
00:00:07]} 2. g3 {[%clk 01:31:25]} {[%emt 00:00:03]} d5 {[%clk 01:31:18]}
{[%emt 00:00:04]} 3. Bg2 {[%clk 01:31:50]} {[%emt 00:00:06]} Nf6 {[%clk
01:31:44]} {[%emt 00:00:04]} 4. Nf3 {[%clk 01:32:15]} {[%emt 00:00:05]} dxc4
{[%clk 01:31:33]} {[%emt 00:00:43]} 5. Qa4+ {[%clk 01:32:30]} {[%emt 00:00:15]}
Nbd7 {[%clk 01:31:56]} {[%emt 00:00:06]} 6. Qxc4 {[%clk 01:31:45]} {[%emt
00:01:15]} c5 {[%clk 01:32:16]} {[%emt 00:00:09]} 7. d4 {[%clk 01:28:16]}
{[%emt 00:04:00]} a6 {[%clk 01:21:11]} {[%emt 00:11:34]} 8. Qc2 {[%clk
01:07:13]} {[%emt 00:21:34]} b5 {[%clk 01:17:18]} {[%emt 00:04:23]} 9. dxc5
{[%clk 00:53:58]} {[%emt 00:13:45]} Nxc5 {[%clk 01:05:50]} {[%emt 00:11:58]} 10.
b4 {[%clk 00:38:14]} {[%emt 00:16:14]} Ncd7 {[%clk 01:04:38]} {[%emt 00:01:42]}
11. a3 {[%clk 00:35:53]} {[%emt 00:02:52]} Bb7 {[%clk 01:04:52]} {[%emt
00:00:17]} 12. O-O {[%clk 00:33:32]} {[%emt 00:02:49]} Rc8 {[%clk 01:03:45]}
{[%emt 00:01:36]} 13. Nc3 {[%clk 00:29:44]} {[%emt 00:04:19]} Be7 {[%clk
01:02:43]} {[%emt 00:01:32]} 14. Bb2 {[%clk 00:29:39]} {[%emt 00:00:35]} O-O
{[%clk 01:02:39]} {[%emt 00:00:34]} 15. Rac1 {[%clk 00:28:50]} {[%emt
00:01:21]} Nb6 {[%clk 00:59:59]} {[%emt 00:03:08]} 16. Rfd1 {[%clk 00:26:52]}
{[%emt 00:02:27]} Qc7 {[%clk 00:58:41]} {[%emt 00:01:48]} 17. Qb1 {[%clk
00:20:59]} {[%emt 00:06:24]} Nc4 {[%clk 00:57:20]} {[%emt 00:01:51]} 18. Nd2
{[%clk 00:20:02]} {[%emt 00:01:28]} Nxb2 {[%clk 00:54:37]} {[%emt 00:03:13]} 19.
Qxb2 {[%clk 00:20:24]} {[%emt 00:00:07]} Bxg2 {[%clk 00:53:11]} {[%emt
00:01:56]} 20. Kxg2 {[%clk 00:20:41]} {[%emt 00:00:13]} Qb7+ {[%clk 00:52:53]}
{[%emt 00:00:48]} 21. Kg1 {[%clk 00:17:49]} {[%emt 00:03:22]} Rc7 {[%clk
00:42:24]} {[%emt 00:10:59]} 22. Nf3 {[%clk 00:09:16]} {[%emt 00:09:04]} Rfc8
{[%clk 00:39:25]} {[%emt 00:03:28]} 23. Na2 {[%clk 00:07:17]} {[%emt 00:02:29]}
Nd5 {[%clk 00:38:44]} {[%emt 00:01:11]} 24. Rxc7 {[%clk 00:04:27]} {[%emt
00:03:20]} Rxc7 {[%clk 00:39:05]} {[%emt 00:00:09]} 25. Rc1 {[%clk 00:04:00]}
{[%emt 00:00:57]} Nb6 {[%clk 00:32:28]} {[%emt 00:07:06]} 26. Rxc7 {[%clk
00:01:57]} {[%emt 00:02:34]} Qxc7 {[%clk 00:32:54]} {[%emt 00:00:04]} 27. Nd2
{[%clk 00:00:56]} {[%emt 00:01:31]} h5 {[%clk 00:26:08]} {[%emt 00:07:16]} 28.
Qc3 {[%clk 00:00:50]} {[%emt 00:00:37]} Qd6 {[%clk 00:26:31]} {[%emt 00:00:06]}
29. Qd3 {[%clk 00:00:44]} {[%emt 00:00:36]} Qc6 {[%clk 00:24:36]} {[%emt
00:02:25]} 30. Nc3 {[%clk 00:00:43]} {[%emt 00:00:31]} Nd7 {[%clk 00:24:35]}
{[%emt 00:00:30]} 31. Nce4 {[%clk 00:00:48]} {[%emt 00:00:26]} f5 {[%clk
00:23:42]} {[%emt 00:01:23]} 32. Nc3 {[%clk 00:00:50]} {[%emt 00:00:28]} Ne5
{[%clk 00:22:54]} {[%emt 00:01:18]} 33. Qe3 {[%clk 00:00:39]} {[%emt 00:00:42]}
Bf6 {[%clk 00:18:50]} {[%emt 00:04:33]} 34. Ncb1 {[%clk 00:00:36]} {[%emt
00:00:33]} h4 {[%clk 00:16:15]} {[%emt 00:03:05]} 35. Qb3 {[%clk 00:00:36]}
{[%emt 00:00:30]} h3 {[%clk 00:16:18]} {[%emt 00:00:27]} 36. f3 {[%clk
00:01:02]} {[%emt 00:00:04]} Qc1+ {[%clk 00:13:47]} {[%emt 00:03:01]} 37. Nf1
{[%clk 00:00:44]} {[%emt 00:00:48]} Nc4 {[%clk 00:12:29]} {[%emt 00:01:48]} 38.
e3 {[%clk 00:00:46]} {[%emt 00:00:29]} Bd8 {[%clk 00:11:07]} {[%emt 00:01:51]}
39. Qd3 {[%clk 00:00:42]} {[%emt 00:00:34]} Bb6 {[%clk 00:11:28]} {[%emt
00:00:08]} 40. Kh1 {[%clk 00:00:41]} {[%emt 00:00:31]} Ne5 {[%clk 00:11:02]}
{[%emt 00:00:56]} 0-1

[Event "NJSK 2026 Jeugd A"]
[Site "Helmond, Netherlands"]
[Date "2026.04.25"]
[Round "1.8"]
[White "Ritzerveld, Noah"]
[Black "Ten Kate, Gustav"]
[Result "1-0"]
[TimeControl "90min/40moves + 30min + 30sec/move"]
[WhiteTitle "-"]
[BlackTitle "-"]
[WhiteFideId "1085760"]
[BlackFideId "1095781"]
[WhiteElo "2205"]
[BlackElo "1972"]

1. e4 {[%clk 01:30:57]} {[%emt 00:00:03]} Nf6 {[%clk 01:30:54]} {[%emt
00:00:06]} 2. e5 {[%clk 01:30:59]} {[%emt 00:00:29]} Nd5 {[%clk 01:31:18]}
{[%emt 00:00:06]} 3. d4 {[%clk 01:31:14]} {[%emt 00:00:15]} d6 {[%clk
01:31:42]} {[%emt 00:00:07]} 4. c4 {[%clk 01:31:39]} {[%emt 00:00:04]} Nb6
{[%clk 01:32:07]} {[%emt 00:00:08]} 5. exd6 {[%clk 01:31:41]} {[%emt 00:00:25]}
cxd6 {[%clk 01:32:31]} {[%emt 00:00:06]} 6. Nf3 {[%clk 01:31:54]} {[%emt
00:00:17]} g6 {[%clk 01:32:30]} {[%emt 00:00:31]} 7. h3 {[%clk 01:31:59]}
{[%emt 00:00:25]} Bg7 {[%clk 01:32:50]} {[%emt 00:00:10]} 8. Be2 {[%clk
01:32:23]} {[%emt 00:00:05]} O-O {[%clk 01:31:46]} {[%emt 00:01:34]} 9. O-O
{[%clk 01:32:42]} {[%emt 00:00:11]} Nc6 {[%clk 01:28:39]} {[%emt 00:03:38]} 10.
Nc3 {[%clk 01:32:51]} {[%emt 00:00:21]} Bf5 {[%clk 01:28:48]} {[%emt 00:00:21]}
11. d5 {[%clk 01:32:36]} {[%emt 00:00:45]} Na5 {[%clk 01:17:49]} {[%emt
00:11:28]} 12. Nd4 {[%clk 01:32:51]} {[%emt 00:00:16]} Bd7 {[%clk 01:12:38]}
{[%emt 00:05:41]} 13. b3 {[%clk 01:27:06]} {[%emt 00:06:15]} Rc8 {[%clk
01:11:59]} {[%emt 00:01:08]} 14. Bg5 {[%clk 01:19:20]} {[%emt 00:08:16]} a6
{[%clk 01:07:21]} {[%emt 00:05:09]} 15. Qd2 {[%clk 01:14:03]} {[%emt 00:05:47]}
Naxc4 {[%clk 00:40:49]} {[%emt 00:27:02]} 16. bxc4 {[%clk 01:13:30]} {[%emt
00:01:03]} Nxc4 {[%clk 00:41:11]} {[%emt 00:00:09]} 17. Bxc4 {[%clk 01:12:47]}
{[%emt 00:01:13]} Rxc4 {[%clk 00:41:35]} {[%emt 00:00:05]} 18. Nce2 {[%clk
01:12:24]} {[%emt 00:00:53]} Qb6 {[%clk 00:32:45]} {[%emt 00:09:20]} 19. Rab1
{[%clk 01:11:50]} {[%emt 00:01:04]} Qc5 {[%clk 00:30:02]} {[%emt 00:03:13]} 20.
Rxb7 {[%clk 01:05:20]} Bxd4 {[%clk 00:11:14]} {[%emt 00:26:18]} 21. Rxd7 {[%clk
01:05:12]} {[%emt 00:00:38]} Bf6 {[%clk 00:08:22]} {[%emt 00:03:22]} 22. Bxf6
{[%clk 01:05:05]} {[%emt 00:00:38]} exf6 {[%clk 00:08:45]} {[%emt 00:00:06]} 23.
Rc1 {[%clk 01:04:36]} {[%emt 00:00:59]} Re8 {[%clk 00:08:39]} {[%emt 00:00:36]}
24. Rxc4 {[%clk 01:04:11]} {[%emt 00:00:55]} Qxc4 {[%clk 00:09:04]} {[%emt
00:00:05]} 25. Ng3 {[%clk 01:04:23]} {[%emt 00:00:18]} Qc5 {[%clk 00:08:25]}
{[%emt 00:01:09]} 26. Kh2 {[%clk 01:04:16]} {[%emt 00:00:38]} Kg7 {[%clk
00:08:37]} {[%emt 00:00:17]} 27. Qf4 {[%clk 01:03:54]} {[%emt 00:00:52]} 1-0